[Event "Titled Tuesday Blitz June 13 Early 2023"]
[White "Jain Kashish Manoj"]
[Black "Shapiro, Daniel"]
[WhiteFideId "35081098"]
[BlackFideId "2001780"]
[WhiteElo "2181"]
[BlackElo "2341"]
[Result "1-0"]
[Round "5"]
[TimeControl "180+2"]
[Date "2023.06.13"]
[WhiteClock "0:00:14"]
[BlackClock "0:00:00"]
[Board "155"]

1. e4 {[%clk 0:03:00]}  e5 {[%clk 0:02:59]} 2. Nf3 {[%clk 0:03:01]}  Nc6 {[%clk 0:02:59]} 3. Bc4 {[%clk 0:03:01]}  Be7 {[%clk 0:02:59]} 4. O-O {[%clk 0:03:00]}  Nf6 {[%clk 0:02:58]} 5. d3 {[%clk 0:02:55]}  d6 {[%clk 0:02:58]} 6. a4 {[%clk 0:02:53]}  a6 {[%clk 0:02:55]} 7. Re1 {[%clk 0:02:51]}  O-O {[%clk 0:02:54]} 8. c3 {[%clk 0:02:50]}  h6 {[%clk 0:02:53]} 9. Nbd2 {[%clk 0:02:49]}  Be6 {[%clk 0:02:50]} 10. h3 {[%clk 0:02:46]}  g6 {[%clk 0:02:16]} 11. Nf1 {[%clk 0:02:40]}  Kg7 {[%clk 0:02:14]} 12. Bxe6 {[%clk 0:02:31]}  fxe6 {[%clk 0:02:14]} 13. d4 {[%clk 0:02:31]}  exd4 {[%clk 0:02:03]} 14. cxd4 {[%clk 0:02:05]}  d5 {[%clk 0:02:03]} 15. exd5 {[%clk 0:02:05]}  exd5 {[%clk 0:02:02]} 16. Ng3 {[%clk 0:02:00]}  Bd6 {[%clk 0:01:52]} 17. Ne5 {[%clk 0:02:01]}  Ne7 {[%clk 0:01:30]} 18. Qc2 {[%clk 0:01:38]}  Rc8 {[%clk 0:01:19]} 19. h4 {[%clk 0:00:50]}  c5 {[%clk 0:01:11]} 20. Nxg6 {[%clk 0:00:46]}  cxd4 {[%clk 0:00:28]} 21. Rxe7+ {[%clk 0:00:23]}  Bxe7 {[%clk 0:00:18]} 22. Nf5+ {[%clk 0:00:24]}  Kh7 {[%clk 0:00:11]} 23. Nxf8+ {[%clk 0:00:23]}  Qxf8 {[%clk 0:00:07]} 24. Qd3 {[%clk 0:00:23]}  Kg8 {[%clk 0:00:06]} 25. Bxh6 {[%clk 0:00:22]}  Qf7 {[%clk 0:00:04]} 26. Re1 {[%clk 0:00:18]}  Bc5 {[%clk 0:00:03]} 27. Bg5 {[%clk 0:00:15]}  Ne4 {[%clk 0:00:00]} 28. Nh6+ {[%clk 0:00:14]} 1-0


[Site "https://www.chess.com"]

[Event "Titled Tuesday Blitz June 13 Early 2023"]
[White "Schnaider, Ilan"]
[Black "Bintang, Rasyid A. Hidayat"]
[WhiteFideId "169013"]
[BlackFideId "7105355"]
[WhiteElo "2224"]
[BlackElo "2336"]
[Result "1-0"]
[Round "5"]
[TimeControl "180+2"]
[Date "2023.06.13"]
[WhiteClock "0:00:04"]
[BlackClock "0:00:08"]
[Board "156"]

1. e4 {[%clk 0:02:58]}  d5 {[%clk 0:02:57]} 2. exd5 {[%clk 0:02:58]}  Nf6 {[%clk 0:02:57]} 3. d4 {[%clk 0:02:57]}  Nxd5 {[%clk 0:02:57]} 4. Nf3 {[%clk 0:02:57]}  Bg4 {[%clk 0:02:57]} 5. Bc4 {[%clk 0:02:56]}  e6 {[%clk 0:02:56]} 6. O-O {[%clk 0:02:55]}  Be7 {[%clk 0:02:56]} 7. c3 {[%clk 0:02:55]}  O-O {[%clk 0:02:55]} 8. Re1 {[%clk 0:02:55]}  c5 {[%clk 0:02:55]} 9. dxc5 {[%clk 0:02:54]}  Bxc5 {[%clk 0:02:55]} 10. Nbd2 {[%clk 0:02:55]}  Nc6 {[%clk 0:02:54]} 11. Ne4 {[%clk 0:02:55]}  Be7 {[%clk 0:02:55]} 12. h3 {[%clk 0:02:54]}  Bh5 {[%clk 0:02:54]} 13. Ng3 {[%clk 0:02:55]}  Bg6 {[%clk 0:02:53]} 14. a4 {[%clk 0:02:42]}  Rc8 {[%clk 0:02:53]} 15. Ba2 {[%clk 0:02:41]}  Bf6 {[%clk 0:02:51]} 16. Qe2 {[%clk 0:02:39]}  a6 {[%clk 0:02:25]} 17. Be3 {[%clk 0:02:36]}  Nxe3 {[%clk 0:02:24]} 18. Qxe3 {[%clk 0:02:37]}  Qd3 {[%clk 0:02:19]} 19. Qb6 {[%clk 0:02:28]}  Qd7 {[%clk 0:02:10]} 20. Rad1 {[%clk 0:02:23]}  Qc7 {[%clk 0:02:08]} 21. Qe3 {[%clk 0:02:23]}  Rfd8 {[%clk 0:02:07]} 22. Ne2 {[%clk 0:02:22]}  h6 {[%clk 0:02:01]} 23. Nf4 {[%clk 0:02:21]}  Bf5 {[%clk 0:02:00]} 24. g4 {[%clk 0:02:19]}  Bh7 {[%clk 0:01:58]} 25. Nh5 {[%clk 0:02:07]}  Qe7 {[%clk 0:01:54]} 26. Qf4 {[%clk 0:01:52]}  Rxd1 {[%clk 0:01:49]} 27. Rxd1 {[%clk 0:01:52]}  Bg5 {[%clk 0:01:46]} 28. Qg3 {[%clk 0:01:41]}  Rd8 {[%clk 0:01:45]} 29. Re1 {[%clk 0:01:41]}  g6 {[%clk 0:01:22]} 30. h4 {[%clk 0:01:32]}  Bd2 {[%clk 0:01:12]} 31. Rd1 {[%clk 0:01:18]}  gxh5 {[%clk 0:00:57]} 32. Rxd2 {[%clk 0:01:10]}  Rxd2 {[%clk 0:00:56]} 33. gxh5+ {[%clk 0:01:10]}  Kf8 {[%clk 0:00:55]} 34. Nxd2 {[%clk 0:01:10]}  Qd7 {[%clk 0:00:49]} 35. Qf4 {[%clk 0:01:02]}  Kg7 {[%clk 0:00:48]} 36. Nf3 {[%clk 0:00:57]}  Qd1+ {[%clk 0:00:42]} 37. Kg2 {[%clk 0:00:55]}  Bf5 {[%clk 0:00:37]} 38. Qg3+ {[%clk 0:00:37]}  Kf8 {[%clk 0:00:35]} 39. Qf4 {[%clk 0:00:26]}  Kg7 {[%clk 0:00:34]} 40. Bc4 {[%clk 0:00:26]}  Qxa4 {[%clk 0:00:28]} 41. b3 {[%clk 0:00:25]}  Qa5 {[%clk 0:00:27]} 42. Qg3+ {[%clk 0:00:22]}  Kf8 {[%clk 0:00:26]} 43. Nd2 {[%clk 0:00:20]}  Qe5 {[%clk 0:00:20]} 44. Qf3 {[%clk 0:00:14]}  Qf6 {[%clk 0:00:17]} 45. Qf4 {[%clk 0:00:08]}  Ne5 {[%clk 0:00:12]} 46. Be2 {[%clk 0:00:05]}  Bh3+ {[%clk 0:00:12]} 47. Kg3 {[%clk 0:00:05]}  Qxh4+ {[%clk 0:00:10]} 48. Qxh4 {[%clk 0:00:05]}  Bf5 {[%clk 0:00:08]} 49. Qf6 {[%clk 0:00:04]} 1-0


[Site "https://www.chess.com"]

[Event "Titled Tuesday Blitz June 13 Early 2023"]
[White "Venkatesh, M.R."]
[Black "De La Villa Garcia, Jesus Maria"]
[WhiteFideId "5005779"]
[BlackFideId "2200040"]
[WhiteElo "2450"]
[BlackElo "2334"]
[Result "0-1"]
[Round "5"]
[TimeControl "180+2"]
[Date "2023.06.13"]
[WhiteClock "0:00:00"]
[BlackClock "0:00:25"]
[Board "157"]

1. Nf3 {[%clk 0:03:00]}  d5 {[%clk 0:02:59]} 2. g3 {[%clk 0:03:00]}  Nc6 {[%clk 0:02:59]} 3. Bg2 {[%clk 0:03:00]}  e5 {[%clk 0:02:59]} 4. d3 {[%clk 0:03:00]}  Be6 {[%clk 0:02:57]} 5. Nbd2 {[%clk 0:02:58]}  f6 {[%clk 0:02:55]} 6. e4 {[%clk 0:02:58]}  Bc5 {[%clk 0:02:53]} 7. c3 {[%clk 0:02:55]}  Nge7 {[%clk 0:02:50]} 8. O-O {[%clk 0:02:40]}  O-O {[%clk 0:02:50]} 9. b4 {[%clk 0:02:40]}  Bb6 {[%clk 0:02:49]} 10. a4 {[%clk 0:02:33]}  a6 {[%clk 0:02:49]} 11. Bb2 {[%clk 0:02:19]}  Kh8 {[%clk 0:02:47]} 12. b5 {[%clk 0:02:02]}  Na5 {[%clk 0:02:42]} 13. Ba3 {[%clk 0:01:49]}  Re8 {[%clk 0:02:36]} 14. Qc2 {[%clk 0:01:42]}  Qd7 {[%clk 0:02:35]} 15. c4 {[%clk 0:01:40]}  dxc4 {[%clk 0:02:22]} 16. dxc4 {[%clk 0:01:39]}  Rad8 {[%clk 0:02:14]} 17. c5 {[%clk 0:01:36]}  Ba7 {[%clk 0:02:14]} 18. Bb4 {[%clk 0:01:35]}  b6 {[%clk 0:02:07]} 19. c6 {[%clk 0:01:33]}  Qd3 {[%clk 0:01:47]} 20. Rfc1 {[%clk 0:01:31]}  Nc8 {[%clk 0:01:40]} 21. Ra3 {[%clk 0:01:21]}  Qxc2 {[%clk 0:01:37]} 22. Rxc2 {[%clk 0:01:20]}  Nd6 {[%clk 0:01:26]} 23. Bf1 {[%clk 0:01:20]}  axb5 {[%clk 0:01:25]} 24. axb5 {[%clk 0:01:19]}  Kg8 {[%clk 0:01:25]} 25. Nh4 {[%clk 0:00:57]}  g6 {[%clk 0:01:19]} 26. Ng2 {[%clk 0:00:56]}  Kf7 {[%clk 0:01:08]} 27. Ne3 {[%clk 0:00:56]}  f5 {[%clk 0:01:09]} 28. Nec4 {[%clk 0:00:48]}  Bxc4 {[%clk 0:01:03]} 29. Nxc4 {[%clk 0:00:48]}  Ndxc4 {[%clk 0:01:03]} 30. Bxc4+ {[%clk 0:00:46]}  Kf6 {[%clk 0:01:03]} 31. Bd5 {[%clk 0:00:43]}  fxe4 {[%clk 0:01:00]} 32. Bxe4 {[%clk 0:00:42]}  Rd4 {[%clk 0:00:56]} 33. Bxa5 {[%clk 0:00:25]}  bxa5 {[%clk 0:00:55]} 34. Re2 {[%clk 0:00:24]}  Bb6 {[%clk 0:00:52]} 35. Rf3+ {[%clk 0:00:21]}  Kg7 {[%clk 0:00:51]} 36. Bc2 {[%clk 0:00:21]}  Rb4 {[%clk 0:00:48]} 37. Re4 {[%clk 0:00:14]}  Rxb5 {[%clk 0:00:45]} 38. Rd3 {[%clk 0:00:14]}  Re7 {[%clk 0:00:42]} 39. Rd7 {[%clk 0:00:07]}  Rxd7 {[%clk 0:00:39]} 40. cxd7 {[%clk 0:00:07]}  Rd5 {[%clk 0:00:40]} 41. Rxe5 {[%clk 0:00:06]}  Rxd7 {[%clk 0:00:40]} 42. Ba4 {[%clk 0:00:03]}  Rd2 {[%clk 0:00:34]} 43. Re7+ {[%clk 0:00:03]}  Kf6 {[%clk 0:00:30]} 44. Re8 {[%clk 0:00:03]}  Kf7 {[%clk 0:00:27]} 45. Rh8 {[%clk 0:00:00]}  Rxf2 {[%clk 0:00:25]} 0-1


[Site "https://www.chess.com"]

[Event "Titled Tuesday Blitz June 13 Early 2023"]
[White "drdaro"]
[Black "Shuvalov, Evgenij"]
[BlackFideId "4187237"]
[WhiteElo "2331"]
[BlackElo "2080"]
[Result "0-1"]
[Round "5"]
[TimeControl "180+2"]
[Date "2023.06.13"]
[WhiteClock "0:00:25"]
[BlackClock "0:00:53"]
[Board "158"]

1. d4 {[%clk 0:02:55]}  Nf6 {[%clk 0:02:58]} 2. Nf3 {[%clk 0:02:56]}  d5 {[%clk 0:02:55]} 3. g3 {[%clk 0:02:57]}  Bf5 {[%clk 0:02:55]} 4. Bg2 {[%clk 0:02:58]}  e6 {[%clk 0:02:55]} 5. O-O {[%clk 0:02:47]}  Be7 {[%clk 0:02:54]} 6. c4 {[%clk 0:02:46]}  c6 {[%clk 0:02:53]} 7. Nc3 {[%clk 0:02:43]}  h6 {[%clk 0:02:49]} 8. b3 {[%clk 0:02:33]}  Nbd7 {[%clk 0:02:47]} 9. Bb2 {[%clk 0:02:17]}  O-O {[%clk 0:02:46]} 10. Re1 {[%clk 0:02:03]}  Bb4 {[%clk 0:02:36]} 11. a3 {[%clk 0:02:01]}  Bxc3 {[%clk 0:02:36]} 12. Bxc3 {[%clk 0:02:02]}  Ne4 {[%clk 0:02:36]} 13. Bb2 {[%clk 0:02:03]}  a5 {[%clk 0:02:35]} 14. Nd2 {[%clk 0:02:02]}  Ndf6 {[%clk 0:02:27]} 15. Nf1 {[%clk 0:01:55]}  Bh7 {[%clk 0:02:16]} 16. f3 {[%clk 0:01:55]}  Nd6 {[%clk 0:02:13]} 17. Nd2 {[%clk 0:01:51]}  dxc4 {[%clk 0:01:52]} 18. bxc4 {[%clk 0:01:50]}  Qb6 {[%clk 0:01:44]} 19. Rb1 {[%clk 0:01:45]}  Bxb1 {[%clk 0:01:44]} 20. Qxb1 {[%clk 0:01:44]}  Nf5 {[%clk 0:01:40]} 21. e3 {[%clk 0:01:19]}  c5 {[%clk 0:01:31]} 22. g4 {[%clk 0:01:07]}  Nh4 {[%clk 0:01:29]} 23. Bf1 {[%clk 0:01:07]}  Rfd8 {[%clk 0:01:20]} 24. Qc2 {[%clk 0:01:01]}  a4 {[%clk 0:01:15]} 25. Bc3 {[%clk 0:00:59]}  Qc6 {[%clk 0:01:10]} 26. Be2 {[%clk 0:00:54]}  Nxg4 {[%clk 0:01:03]} 27. d5 {[%clk 0:00:52]}  exd5 {[%clk 0:01:00]} 28. fxg4 {[%clk 0:00:51]}  d4 {[%clk 0:01:00]} 29. Qe4 {[%clk 0:00:37]}  dxc3 {[%clk 0:00:55]} 30. Qxc6 {[%clk 0:00:32]}  cxd2 {[%clk 0:00:53]} 31. Rd1 {[%clk 0:00:25]}  bxc6 {[%clk 0:00:53]} 0-1


[Site "https://www.chess.com"]

[Event "Titled Tuesday Blitz June 13 Early 2023"]
[White "Simonovic, Miroslav"]
[Black "Srdanovic, Jovana"]
[WhiteFideId "919152"]
[BlackFideId "954810"]
[WhiteElo "2075"]
[BlackElo "2155"]
[Result "0-1"]
[Round "5"]
[TimeControl "180+2"]
[Date "2023.06.13"]
[WhiteClock "0:00:02"]
[BlackClock "0:00:29"]
[Board "160"]

1. d4 {[%clk 0:03:00]}  d5 {[%clk 0:02:48]} 2. Bg5 {[%clk 0:03:01]}  Nf6 {[%clk 0:02:43]} 3. Bxf6 {[%clk 0:03:01]}  exf6 {[%clk 0:02:41]} 4. e3 {[%clk 0:03:02]}  f5 {[%clk 0:02:41]} 5. c4 {[%clk 0:03:01]}  c6 {[%clk 0:02:33]} 6. cxd5 {[%clk 0:03:00]}  cxd5 {[%clk 0:02:32]} 7. g3 {[%clk 0:03:00]}  g6 {[%clk 0:02:31]} 8. Bg2 {[%clk 0:02:59]}  Be6 {[%clk 0:02:20]} 9. Nc3 {[%clk 0:02:59]}  Nc6 {[%clk 0:02:19]} 10. Nge2 {[%clk 0:02:59]}  Qd7 {[%clk 0:02:11]} 11. O-O {[%clk 0:02:59]}  Bh6 {[%clk 0:01:44]} 12. a3 {[%clk 0:02:57]}  O-O {[%clk 0:01:38]} 13. b4 {[%clk 0:02:57]}  Rac8 {[%clk 0:01:36]} 14. Na4 {[%clk 0:02:55]}  b6 {[%clk 0:01:30]} 15. Qb3 {[%clk 0:02:54]}  f4 {[%clk 0:01:17]} 16. Nxf4 {[%clk 0:02:35]}  Bxf4 {[%clk 0:01:15]} 17. gxf4 {[%clk 0:02:36]}  Ne7 {[%clk 0:01:12]} 18. Rfc1 {[%clk 0:02:20]}  Bh3 {[%clk 0:01:12]} 19. Qd1 {[%clk 0:02:18]}  Bxg2 {[%clk 0:01:09]} 20. Kxg2 {[%clk 0:02:18]}  Nf5 {[%clk 0:01:08]} 21. Nc3 {[%clk 0:01:16]}  Nh4+ {[%clk 0:01:06]} 22. Kg3 {[%clk 0:00:47]}  Nf5+ {[%clk 0:00:59]} 23. Kg2 {[%clk 0:00:47]}  Qe6 {[%clk 0:00:59]} 24. h3 {[%clk 0:00:30]}  Rc4 {[%clk 0:00:54]} 25. Qg4 {[%clk 0:00:16]}  Rfc8 {[%clk 0:00:50]} 26. Na2 {[%clk 0:00:15]}  h5 {[%clk 0:00:48]} 27. Qd1 {[%clk 0:00:08]}  Qe4+ {[%clk 0:00:46]} 28. Kh2 {[%clk 0:00:06]}  Nh4 {[%clk 0:00:39]} 29. Kg3 {[%clk 0:00:04]}  Qg2+ {[%clk 0:00:27]} 30. Kxh4 {[%clk 0:00:04]}  Qxf2+ {[%clk 0:00:28]} 31. Kg5 {[%clk 0:00:03]}  Kg7 {[%clk 0:00:28]} 32. Qg1 {[%clk 0:00:02]}  f6# {[%clk 0:00:29]} 0-1


[Site "https://www.chess.com"]

[Event "Titled Tuesday Blitz June 13 Early 2023"]
[White "Golubev, Mikhail"]
[Black "Jiganchine, Roman"]
[WhiteFideId "14100983"]
[BlackFideId "2603667"]
[WhiteElo "2374"]
[BlackElo "2301"]
[Result "0-1"]
[Round "5"]
[TimeControl "180+2"]
[Date "2023.06.13"]
[WhiteClock "0:00:00"]
[BlackClock "0:00:27"]
[Board "161"]

1. e4 {[%clk 0:03:00]}  c6 {[%clk 0:02:58]} 2. d4 {[%clk 0:02:57]}  d5 {[%clk 0:02:58]} 3. Nc3 {[%clk 0:02:55]}  dxe4 {[%clk 0:02:58]} 4. Nxe4 {[%clk 0:02:56]}  Nf6 {[%clk 0:02:58]} 5. Nxf6+ {[%clk 0:02:54]}  exf6 {[%clk 0:02:59]} 6. c3 {[%clk 0:02:52]}  Bd6 {[%clk 0:02:57]} 7. Bd3 {[%clk 0:02:52]}  Na6 {[%clk 0:02:56]} 8. Ne2 {[%clk 0:02:45]}  Nc7 {[%clk 0:02:54]} 9. O-O {[%clk 0:02:43]}  Nd5 {[%clk 0:02:49]} 10. c4 {[%clk 0:02:35]}  Nb4 {[%clk 0:02:44]} 11. Bb1 {[%clk 0:02:34]}  O-O {[%clk 0:02:38]} 12. a3 {[%clk 0:02:34]}  Na6 {[%clk 0:02:34]} 13. b4 {[%clk 0:02:30]}  b5 {[%clk 0:02:30]} 14. cxb5 {[%clk 0:02:19]}  cxb5 {[%clk 0:02:30]} 15. Qd3 {[%clk 0:02:18]}  g6 {[%clk 0:02:25]} 16. Qxb5 {[%clk 0:02:15]}  Rb8 {[%clk 0:02:18]} 17. Qd3 {[%clk 0:02:09]}  Nc7 {[%clk 0:02:18]} 18. Qd1 {[%clk 0:01:38]}  Re8 {[%clk 0:02:05]} 19. Bd3 {[%clk 0:01:35]}  Nd5 {[%clk 0:01:57]} 20. h3 {[%clk 0:01:21]}  Bc7 {[%clk 0:01:44]} 21. Bd2 {[%clk 0:01:17]}  Qd6 {[%clk 0:01:40]} 22. Ng3 {[%clk 0:01:02]}  h5 {[%clk 0:01:38]} 23. Re1 {[%clk 0:00:59]}  Bd7 {[%clk 0:01:25]} 24. Qc2 {[%clk 0:00:45]}  Kg7 {[%clk 0:00:59]} 25. Nf1 {[%clk 0:00:34]}  Bb6 {[%clk 0:00:54]} 26. Be3 {[%clk 0:00:28]}  Rbc8 {[%clk 0:00:53]} 27. Qd2 {[%clk 0:00:28]}  g5 {[%clk 0:00:51]} 28. Ng3 {[%clk 0:00:25]}  Nxe3 {[%clk 0:00:44]} 29. Rxe3 {[%clk 0:00:11]}  Bxd4 {[%clk 0:00:42]} 30. Rxe8 {[%clk 0:00:06]}  Rxe8 {[%clk 0:00:41]} 31. Bf5 {[%clk 0:00:06]}  Bc6 {[%clk 0:00:32]} 32. Nxh5+ {[%clk 0:00:05]}  Kf8 {[%clk 0:00:29]} 33. Rd1 {[%clk 0:00:04]}  Rd8 {[%clk 0:00:28]} 34. Kh1 {[%clk 0:00:00]}  Qd5 {[%clk 0:00:27]} 0-1


[Site "https://www.chess.com"]

[Event "Titled Tuesday Blitz June 13 Early 2023"]
[White "Gonzalez Vega, Alejandro"]
[Black "Peycheva, Gergana"]
[WhiteFideId "3510042"]
[BlackFideId "2916711"]
[WhiteElo "2294"]
[BlackElo "2216"]
[Result "1-0"]
[Round "5"]
[TimeControl "180+2"]
[Date "2023.06.13"]
[WhiteClock "0:01:09"]
[BlackClock "0:00:01"]
[Board "162"]

1. e4 {[%clk 0:02:52]}  c5 {[%clk 0:02:58]} 2. Nf3 {[%clk 0:02:50]}  Nc6 {[%clk 0:02:58]} 3. d4 {[%clk 0:02:49]}  cxd4 {[%clk 0:02:59]} 4. c3 {[%clk 0:02:48]}  dxc3 {[%clk 0:02:57]} 5. Nxc3 {[%clk 0:02:49]}  e6 {[%clk 0:02:44]} 6. Bc4 {[%clk 0:02:48]}  a6 {[%clk 0:02:43]} 7. O-O {[%clk 0:02:47]}  b5 {[%clk 0:02:43]} 8. Bb3 {[%clk 0:02:47]}  Bb7 {[%clk 0:02:43]} 9. Qe2 {[%clk 0:02:45]}  Na5 {[%clk 0:02:43]} 10. Bc2 {[%clk 0:02:44]}  Rc8 {[%clk 0:02:41]} 11. Rd1 {[%clk 0:02:43]}  Ne7 {[%clk 0:02:36]} 12. Bg5 {[%clk 0:02:41]}  f6 {[%clk 0:02:36]} 13. Bf4 {[%clk 0:02:35]}  Ng6 {[%clk 0:02:36]} 14. Bg3 {[%clk 0:02:34]}  Nc4 {[%clk 0:02:30]} 15. Bb3 {[%clk 0:02:31]}  Be7 {[%clk 0:02:16]} 16. a4 {[%clk 0:02:26]}  Qb6 {[%clk 0:01:34]} 17. axb5 {[%clk 0:02:06]}  axb5 {[%clk 0:01:33]} 18. Nxb5 {[%clk 0:01:52]}  Qxb5 {[%clk 0:00:30]} 19. Ba4 {[%clk 0:01:49]}  Qb4 {[%clk 0:00:18]} 20. Bxd7+ {[%clk 0:01:47]}  Kf7 {[%clk 0:00:18]} 21. b3 {[%clk 0:01:38]}  Nb6 {[%clk 0:00:10]} 22. Bxc8 {[%clk 0:01:34]}  Rxc8 {[%clk 0:00:11]} 23. Nd4 {[%clk 0:01:24]}  e5 {[%clk 0:00:05]} 24. Nf5 {[%clk 0:01:23]}  Na8 {[%clk 0:00:02]} 25. Nxe7 {[%clk 0:01:20]}  Nxe7 {[%clk 0:00:02]} 26. f3 {[%clk 0:01:19]}  Bc6 {[%clk 0:00:02]} 27. Ra7 {[%clk 0:01:16]}  Nc7 {[%clk 0:00:03]} 28. Qc4+ {[%clk 0:01:09]}  Kf8 {[%clk 0:00:01]} 29. Qxb4 {[%clk 0:01:09]} 1-0


[Site "https://www.chess.com"]

[Event "Titled Tuesday Blitz June 13 Early 2023"]
[White "Chakravarthi Reddy, M"]
[Black "Bilan, Danila"]
[WhiteFideId "25009532"]
[BlackFideId "24161918"]
[WhiteElo "2201"]
[BlackElo "2146"]
[Result "0-1"]
[Round "5"]
[TimeControl "180+2"]
[Date "2023.06.13"]
[WhiteClock "0:00:00"]
[BlackClock "0:00:25"]
[Board "165"]

1. e4 {[%clk 0:03:00]}  c6 {[%clk 0:03:00]} 2. d4 {[%clk 0:02:59]}  d5 {[%clk 0:03:00]} 3. e5 {[%clk 0:02:58]}  c5 {[%clk 0:03:00]} 4. Nf3 {[%clk 0:02:55]}  Bg4 {[%clk 0:02:59]} 5. Bb5+ {[%clk 0:02:50]}  Nc6 {[%clk 0:02:58]} 6. dxc5 {[%clk 0:02:50]}  e6 {[%clk 0:02:53]} 7. b4 {[%clk 0:02:41]}  Qc7 {[%clk 0:02:49]} 8. Bxc6+ {[%clk 0:02:40]}  bxc6 {[%clk 0:02:47]} 9. Bf4 {[%clk 0:02:32]}  a5 {[%clk 0:02:47]} 10. c3 {[%clk 0:02:32]}  Ne7 {[%clk 0:02:43]} 11. h3 {[%clk 0:02:29]}  Bxf3 {[%clk 0:02:35]} 12. Qxf3 {[%clk 0:02:28]}  Ng6 {[%clk 0:02:35]} 13. Qg3 {[%clk 0:02:17]}  Nxf4 {[%clk 0:02:33]} 14. Qxf4 {[%clk 0:02:17]}  f6 {[%clk 0:02:25]} 15. O-O {[%clk 0:02:08]}  Qxe5 {[%clk 0:02:05]} 16. Qc1 {[%clk 0:01:51]}  Kf7 {[%clk 0:01:29]} 17. Nd2 {[%clk 0:01:44]}  axb4 {[%clk 0:01:20]} 18. cxb4 {[%clk 0:01:37]}  Qf5 {[%clk 0:01:14]} 19. Nb3 {[%clk 0:01:28]}  e5 {[%clk 0:01:09]} 20. a4 {[%clk 0:01:17]}  Rb8 {[%clk 0:01:03]} 21. Na5 {[%clk 0:00:54]}  Rxb4 {[%clk 0:00:56]} 22. Nxc6 {[%clk 0:00:40]}  Rc4 {[%clk 0:00:56]} 23. Qd1 {[%clk 0:00:39]}  Rxc5 {[%clk 0:00:53]} 24. Nb4 {[%clk 0:00:32]}  d4 {[%clk 0:00:50]} 25. a5 {[%clk 0:00:20]}  Bd6 {[%clk 0:00:48]} 26. a6 {[%clk 0:00:21]}  Ra8 {[%clk 0:00:46]} 27. Nd3 {[%clk 0:00:19]}  Rc3 {[%clk 0:00:45]} 28. Nb2 {[%clk 0:00:19]}  Qc2 {[%clk 0:00:41]} 29. Na4 {[%clk 0:00:19]}  Qxd1 {[%clk 0:00:41]} 30. Rfxd1 {[%clk 0:00:18]}  Ra3 {[%clk 0:00:37]} 31. Rxa3 {[%clk 0:00:14]}  Bxa3 {[%clk 0:00:38]} 32. Ra1 {[%clk 0:00:15]}  Rxa6 {[%clk 0:00:32]} 33. Rxa3 {[%clk 0:00:15]}  d3 {[%clk 0:00:32]} 34. Kf1 {[%clk 0:00:11]}  e4 {[%clk 0:00:32]} 35. Ke1 {[%clk 0:00:11]}  f5 {[%clk 0:00:31]} 36. Kd2 {[%clk 0:00:10]}  g6 {[%clk 0:00:32]} 37. h4 {[%clk 0:00:10]}  Kf6 {[%clk 0:00:31]} 38. g3 {[%clk 0:00:09]}  Ke5 {[%clk 0:00:31]} 39. Ra2 {[%clk 0:00:09]}  Kd4 {[%clk 0:00:30]} 40. Nc3 {[%clk 0:00:08]}  Rb6 {[%clk 0:00:26]} 41. Ra4+ {[%clk 0:00:07]}  Kc5 {[%clk 0:00:25]} 42. Ra2 {[%clk 0:00:07]}  h6 {[%clk 0:00:23]} 43. Na4+ {[%clk 0:00:07]}  Kb5 {[%clk 0:00:23]} 44. Nxb6 {[%clk 0:00:07]}  Kxb6 {[%clk 0:00:24]} 45. Rb2+ {[%clk 0:00:08]}  Kc5 {[%clk 0:00:25]} 46. Rb8 {[%clk 0:00:08]}  g5 {[%clk 0:00:24]} 47. Rh8 {[%clk 0:00:08]}  f4 {[%clk 0:00:24]} 48. Rxh6 {[%clk 0:00:06]}  Kd4 {[%clk 0:00:25]} 49. Rd6+ {[%clk 0:00:06]}  Ke5 {[%clk 0:00:25]} 50. Rd8 {[%clk 0:00:04]}  e3+ {[%clk 0:00:25]} 51. fxe3 {[%clk 0:00:05]}  fxg3 {[%clk 0:00:26]} 52. Rg8 {[%clk 0:00:00]}  gxh4 {[%clk 0:00:25]} 0-1


[Site "https://www.chess.com"]

[Event "Titled Tuesday Blitz June 13 Early 2023"]
[White "agvania123"]
[Black "Mrithyunjay Mahadevan"]
[BlackFideId "45003521"]
[WhiteElo "2257"]
[BlackElo "1626"]
[Result "0-1"]
[Round "5"]
[TimeControl "180+2"]
[Date "2023.06.13"]
[WhiteClock "0:00:15"]
[BlackClock "0:01:12"]
[Board "166"]

1. c4 {[%clk 0:03:00]}  g6 {[%clk 0:02:57]} 2. Nc3 {[%clk 0:02:59]}  Bg7 {[%clk 0:02:57]} 3. e4 {[%clk 0:02:59]}  e5 {[%clk 0:02:52]} 4. d3 {[%clk 0:02:59]}  Ne7 {[%clk 0:02:51]} 5. g3 {[%clk 0:02:59]}  O-O {[%clk 0:02:52]} 6. Bg2 {[%clk 0:02:59]}  Nbc6 {[%clk 0:02:49]} 7. Nge2 {[%clk 0:02:59]}  f5 {[%clk 0:02:49]} 8. O-O {[%clk 0:02:58]}  f4 {[%clk 0:02:46]} 9. gxf4 {[%clk 0:02:55]}  exf4 {[%clk 0:02:45]} 10. Bxf4 {[%clk 0:02:51]}  d6 {[%clk 0:02:45]} 11. Bg3 {[%clk 0:02:49]}  Bg4 {[%clk 0:02:34]} 12. Qd2 {[%clk 0:02:46]}  Ne5 {[%clk 0:02:30]} 13. f4 {[%clk 0:02:44]}  N5c6 {[%clk 0:02:27]} 14. h3 {[%clk 0:02:42]}  Be6 {[%clk 0:02:26]} 15. Nd5 {[%clk 0:02:38]}  Nd4 {[%clk 0:02:25]} 16. Nxd4 {[%clk 0:02:37]}  Bxd4+ {[%clk 0:02:23]} 17. Bf2 {[%clk 0:02:37]}  Bg7 {[%clk 0:02:18]} 18. Bh4 {[%clk 0:02:33]}  Bxd5 {[%clk 0:02:18]} 19. exd5 {[%clk 0:02:30]}  Qd7 {[%clk 0:02:17]} 20. Bxe7 {[%clk 0:02:27]}  Qxe7 {[%clk 0:02:18]} 21. Rae1 {[%clk 0:02:27]}  Qf6 {[%clk 0:02:17]} 22. b3 {[%clk 0:02:11]}  Qd4+ {[%clk 0:02:13]} 23. Kh1 {[%clk 0:02:10]}  Rf7 {[%clk 0:02:11]} 24. f5 {[%clk 0:02:08]}  gxf5 {[%clk 0:02:09]} 25. Re6 {[%clk 0:02:04]}  Raf8 {[%clk 0:02:03]} 26. Rf4 {[%clk 0:02:00]}  Qa1+ {[%clk 0:01:57]} 27. Rf1 {[%clk 0:01:58]}  Qd4 {[%clk 0:01:57]} 28. Rf4 {[%clk 0:01:57]}  Qc5 {[%clk 0:01:51]} 29. d4 {[%clk 0:01:54]}  Qa3 {[%clk 0:01:50]} 30. h4 {[%clk 0:01:50]}  Rf6 {[%clk 0:01:48]} 31. h5 {[%clk 0:01:09]}  Bh6 {[%clk 0:01:41]} 32. Rxf6 {[%clk 0:00:48]}  Rxf6 {[%clk 0:01:38]} 33. Qe3 {[%clk 0:00:41]}  Bxf4 {[%clk 0:01:34]} 34. Qxf4 {[%clk 0:00:42]}  h6 {[%clk 0:01:26]} 35. Be4 {[%clk 0:00:32]}  Qxa2 {[%clk 0:01:20]} 36. Qg3+ {[%clk 0:00:24]}  Kf8 {[%clk 0:01:18]} 37. Bd3 {[%clk 0:00:19]}  Qxb3 {[%clk 0:01:16]} 38. c5 {[%clk 0:00:16]}  Qd1+ {[%clk 0:01:14]} 39. Kh2 {[%clk 0:00:16]}  Qxh5+ {[%clk 0:01:13]} 40. Kg2 {[%clk 0:00:15]}  Rg6 {[%clk 0:01:12]} 0-1


[Site "https://www.chess.com"]